fUST/lending_fUST_20240802
["ID","MTS","AMOUNT","RATE_DAILY","PERIOD"]
[333843738,1722546656855,-500.0,0.00014246,2]
[333843739,1722546656865,-500.0,0.00014246,2]
[333843740,1722546656874,-611.92,0.00014246,2]
[333843741,1722546656883,-500.0,0.00014246,2]
[333843742,1722546656893,-500.0,0.00014246,2]
[333843743,1722546656902,-319.68635329,0.00014246,2]
[333843744,1722546656912,-500.0,0.00014246,2]
[333843745,1722546656921,-500.0,0.00014246,2]
[333843746,1722546656931,-500.0,0.00014246,2]
[333843747,1722546656940,-500.0,0.00014246,2]
[333843748,1722546656949,-500.0,0.00014246,2]
[333843749,1722546656958,-500.0,0.00014246,2]
[333843750,1722546656967,-500.0,0.00014246,2]
[333843751,1722546656976,-500.0,0.00014246,2]
[333843752,1722546656986,-512.38206662,0.00014246,2]
[333843753,1722546656999,-1095.3,0.00014246,2]
[333843754,1722546657008,-500.0,0.00014246,2]
[333843755,1722546657018,-500.0,0.00014246,2]
[333843756,1722546657027,-500.0,0.00014246,2]
[333843757,1722546657044,-500.0,0.00014246,2]
[333843758,1722546657055,-500.0,0.00014246,2]
[333843759,1722546657064,-514.93,0.00014246,2]
[333843760,1722546657073,-500.0,0.00014246,2]
[333843761,1722546657082,-500.0,0.00014246,2]
[333843762,1722546657091,-500.0,0.00014246,2]
[333843763,1722546657101,-500.0,0.00014246,2]
[333843764,1722546657111,-571.68,0.00014246,2]
[333843765,1722546657120,-500.0,0.00014246,2]
[333843766,1722546657130,-439.6,0.00014246,2]
[333843767,1722546657139,-827.19,0.00014246,2]
[333843768,1722546657148,-500.0,0.00014246,2]
[333843769,1722546657157,-500.0,0.00014246,2]
[333843770,1722546657167,-500.0,0.00014246,2]
[333843771,1722546657247,-500.0,0.00014246,2]
[333843772,1722546657257,-500.0,0.00014246,2]
[333843773,1722546657266,-500.0,0.00014246,2]
[333843774,1722546657276,-500.0,0.00014246,2]
[333843775,1722546657286,-500.0,0.00014246,2]
[333843776,1722546657296,-557.34,0.00014246,2]
[333843777,1722546657305,-500.0,0.00014246,2]
[333843778,1722546657316,-500.0,0.00014246,2]
[333843779,1722546657325,-500.0,0.00014246,2]
[333843780,1722546657335,-500.0,0.00014246,2]
[333843781,1722546657345,-500.0,0.00014246,2]
[333843782,1722546657354,-735.97,0.00014246,2]
[333843783,1722546657364,-500.0,0.00014246,2]
[333843784,1722546657374,-500.0,0.00014246,2]
[333843785,1722546657383,-509.44025605,0.00014246,2]
[333843786,1722546657393,-729.51106,0.00014247,2]
[333843787,1722546657403,-150.112233,0.000143,2]
[333843788,1722546657413,-150.112233,0.000144,2]
[333843789,1722546657423,-5530.8933971,0.00014459,2]
[333843790,1722546657432,-150.0,0.0001447,2]
[333843791,1722546657441,-506.0,0.0001447,2]
[333843792,1722546657451,-1410.0,0.0001447,2]
[333843793,1722546657460,-500.0,0.00014519,2]
[333843794,1722546657470,-500.0,0.00014519,2]
[333843795,1722546657479,-4288.41,0.00014519,2]
[333843796,1722546657488,-4288.41,0.00014519,2]
[333843797,1722546657504,-500.0,0.0001452,2]
[333843798,1722546657513,-500.0,0.0001452,2]
[333843799,1722546657523,-500.0,0.0001452,2]
[333843800,1722546657534,-500.0,0.0001452,2]
[333843801,1722546657546,-500.0,0.0001452,2]
[333843802,1722546657558,-500.0,0.0001452,2]
[333843803,1722546657568,-500.0,0.0001452,2]
[333843804,1722546657577,-500.0,0.0001452,2]
[333843805,1722546657587,-151.0,0.0001452,2]
[333843806,1722546657598,-500.0,0.0001452,2]
[333843807,1722546657608,-500.0,0.0001452,2]
[333843808,1722546657619,-500.0,0.0001452,2]
[333843809,1722546657631,-169.972654,0.0001452,2]
[333843810,1722546657642,-500.0,0.0001452,2]
[333843811,1722546657653,-500.0,0.0001452,2]
[333843812,1722546657666,-169.972654,0.0001452,2]
[333843813,1722546657677,-500.0,0.0001452,2]
[333843814,1722546657688,-500.0,0.0001452,2]
[333843815,1722546657700,-500.0,0.0001452,2]
[333843816,1722546657711,-226.841596,0.0001452,2]
[333843817,1722546657724,-500.0,0.0001452,2]
[333843818,1722546657736,-500.0,0.0001452,2]
[333843819,1722546657750,-500.0,0.0001452,2]
[333843820,1722546657762,-500.0,0.0001452,2]
[333843821,1722546657773,-507.880248,0.0001452,2]
[333843822,1722546657782,-539.0115133,0.0001452,2]
[333843823,1722546657792,-490.06781883,0.0001452,2]
[333843824,1722546657945,-9.93218117,0.0001452,2]
[333843825,1722546657956,-507.880248,0.0001452,2]
[333843826,1722546657969,-151.0,0.0001452,2]
[333843827,1722546657979,-500.0,0.0001452,2]
[333843828,1722546657988,-396.60852126,0.0001452,2]
[333843829,1722546657999,-500.0,0.0001452,2]
[333843830,1722546658008,-500.0,0.0001452,2]
[333843831,1722546658018,-500.0,0.0001452,2]
[333843832,1722546658028,-500.0,0.0001452,2]
[333843833,1722546658037,-500.0,0.0001452,2]
[333843834,1722546658047,-500.0,0.0001452,2]
[333843835,1722546658057,-500.0,0.0001452,2]
[333843836,1722546658066,-500.0,0.0001452,2]
[333843837,1722546658076,-500.0,0.0001452,2]
[333843838,1722546658085,-264.35422318,0.0001452,2]
[333843839,1722546658095,-500.0,0.0001452,2]
[333843840,1722546658104,-605.43,0.0001452,2]
[333843841,1722546658114,-500.0,0.0001452,2]
[333843842,1722546658123,-500.0,0.0001452,2]
[333843843,1722546658134,-500.0,0.0001452,2]
[333843844,1722546658144,-101.67488479,0.0001452,2]
[333843865,1722547481179,314.63,0.00027,120]
[333843915,1722547831984,-160.414318,0.00011614,2]
[333843917,1722547831994,-224.345845,0.00011744,2]
[333843919,1722547832003,-34.13296781,0.00011776,2]
[333843944,1722547838348,-190.21287719,0.00011776,2]
[333843945,1722547838359,-300.0,0.00011777,2]
[333843946,1722547838369,-24900.0,0.00011778,2]
[333843947,1722547838379,-224.345845,0.00011808,2]
[333843948,1722547838388,-224.345845,0.0001184,2]
[333843949,1722547838398,-224.345845,0.00011873,2]
[333843950,1722547838409,-224.345845,0.00011905,2]
[333843951,1722547838418,-224.345845,0.00011937,2]
[333843952,1722547838428,-224.345845,0.00011969,2]
[333843953,1722547838438,-224.345845,0.00012001,2]
[333843954,1722547838447,-224.345845,0.00012034,2]
[333843955,1722547838456,-224.345845,0.00012066,2]
[333843956,1722547838466,-224.345845,0.00012098,2]
[333843957,1722547838476,-224.345845,0.0001213,2]
[333843958,1722547838486,-224.345845,0.00012163,2]
[333843959,1722547838496,-224.345845,0.00012195,2]
[333843960,1722547838507,-224.345845,0.00012227,2]
[333843961,1722547838517,-224.345845,0.00012259,2]
[333843962,1722547838526,-224.345845,0.00012291,2]
[333843963,1722547838536,-224.345845,0.00012324,2]
[333843964,1722547838545,-224.345845,0.00012356,2]
[333843965,1722547838555,-2023.51194993,0.000125,2]
[333843966,1722547838565,-4524.9390769,0.000129,2]
[333843967,1722547838576,-191.56606571,0.00012901,2]
[333843968,1722547838586,-167.694837,0.00012986,2]
[333843969,1722547838598,-160.414318,0.00013197,2]
[333843970,1722547838609,-294.0187007,0.0001337,2]
[333843971,1722547838619,-181.95700473,0.00013598,2]
[333843972,1722547838631,-19144.69406046,0.000136,2]
[333843973,1722547838645,-5844.76223205,0.000136,2]
[333843974,1722547838657,-1259.41545977,0.000136,2]
[333843975,1722547838700,-2436.80991804,0.000136,2]
[333843985,1722547841259,-9499.53939956,0.000136,2]
[333843987,1722547841270,-648.88,0.00013686,2]
[333843989,1722547841279,-1373.67,0.00013687,2]
[333843991,1722547841289,-50252.4318528,0.00013688,2]
[333843992,1722547841299,-1373.67,0.00013697,2]
[333843993,1722547841308,-1373.67,0.00013697,2]
[333843994,1722547841317,-500.0,0.00013698,2]
[333843995,1722547841326,-500.0,0.00013698,2]
[333843996,1722547841337,-500.0,0.00013698,2]
[333843997,1722547841346,-424.68068432,0.00013698,2]
[333843998,1722547841355,-500.0,0.00013698,2]
[333843999,1722547841365,-500.0,0.00013698,2]
[333844000,1722547841376,-500.0,0.00013698,2]
[333844001,1722547841387,-500.0,0.00013698,2]
[333844002,1722547841396,-500.0,0.00013698,2]
[333844003,1722547841406,-500.0,0.00013698,2]
[333844004,1722547841415,-500.0,0.00013698,2]
[333844005,1722547841425,-500.0,0.00013698,2]
[333844006,1722547841434,-500.0,0.00013698,2]
[333844007,1722547841444,-500.0,0.00013698,2]
[333844008,1722547841453,-500.0,0.00013698,2]
[333844009,1722547841463,-150.79,0.00013698,2]
[333844010,1722547841472,-500.0,0.00013698,2]
[333844011,1722547841482,-500.0,0.00013698,2]
[333844012,1722547841492,-500.0,0.00013698,2]
[333844013,1722547841503,-500.0,0.00013698,2]
[333844014,1722547841513,-500.0,0.00013698,2]
[333844015,1722547841523,-500.0,0.00013698,2]
[333844016,1722547841533,-609.18,0.00013698,2]
[333844017,1722547841543,-500.0,0.00013698,2]
[333844018,1722547841659,-500.0,0.00013698,2]
[333844019,1722547841672,-500.0,0.00013698,2]
[333844020,1722547841683,-500.0,0.00013698,2]
[333844021,1722547841693,-500.0,0.00013698,2]
[333844022,1722547841702,-517.30697597,0.00013698,2]
[333844023,1722547841714,-500.0,0.00013698,2]
[333844024,1722547841724,-2259.67,0.00013698,2]
[333844025,1722547841733,-500.0,0.00013698,2]
[333844026,1722547841742,-500.0,0.00013698,2]
[333844027,1722547841752,-500.0,0.00013698,2]
[333844028,1722547841764,-500.0,0.00013698,2]
[333844029,1722547841775,-500.0,0.00013698,2]
[333844030,1722547841786,-500.0,0.00013698,2]
[333844031,1722547841795,-500.0,0.00013698,2]
[333844032,1722547841805,-500.0,0.00013698,2]
[333844033,1722547841816,-457.65884256,0.00013698,2]
[333844034,1722547841825,-500.0,0.00013698,2]
[333844035,1722547841834,-500.0,0.00013698,2]
[333844036,1722547841843,-500.0,0.00013698,2]
[333844037,1722547841853,-500.0,0.00013698,2]
[333844038,1722547841863,-203.26950381,0.00013698,2]
[333844039,1722547841872,-160.64262964,0.00013698,2]
[333844040,1722547841882,-500.0,0.00013698,2]
[333844041,1722547841891,-500.0,0.00013698,2]
[333844042,1722547841900,-500.0,0.00013698,2]
[333844043,1722547841910,-476.18290349,0.00013698,2]
[333844044,1722547841919,-500.0,0.00013698,2]
[333844045,1722547841929,-500.0,0.00013698,2]
[333844046,1722547841938,-500.0,0.00013698,2]
[333844047,1722547841948,-500.0,0.00013698,2]
[333844048,1722547841957,-500.0,0.00013698,2]
[333844049,1722547841966,-500.0,0.00013698,2]
[333844050,1722547841976,-500.0,0.00013698,2]
[333844051,1722547841985,-500.0,0.00013698,2]
[333844052,1722547841995,-500.0,0.00013698,2]
[333844053,1722547842005,-545.96,0.00013698,2]
[333844054,1722547842015,-500.0,0.00013698,2]
[333844055,1722547842024,-461.64509216,0.00013698,2]
[333844056,1722547842034,-500.0,0.00013698,2]
[333844057,1722547842044,-500.0,0.00013698,2]
[333844058,1722547842054,-500.0,0.00013698,2]
[333844059,1722547842063,-500.0,0.00013698,2]
[333844060,1722547842072,-500.0,0.00013698,2]
[333844061,1722547842082,-500.0,0.00013698,2]
[333844062,1722547842091,-500.0,0.00013698,2]
[333844063,1722547842100,-500.0,0.00013698,2]
[333844064,1722547842109,-500.0,0.00013698,2]
[333844065,1722547842118,-156.40591591,0.00013698,2]
[333844066,1722547842127,-500.0,0.00013698,2]
[333844067,1722547842136,-500.0,0.00013698,2]
[333844068,1722547842146,-500.0,0.00013698,2]
[333844069,1722547842155,-500.0,0.00013698,2]
[333844070,1722547842164,-500.0,0.00013698,2]
[333844071,1722547842174,-500.0,0.00013698,2]
[333844072,1722547842183,-500.0,0.00013698,2]
[333844073,1722547842198,-500.0,0.00013698,2]
[333844074,1722547842208,-500.0,0.00013698,2]
[333844075,1722547842217,-529.34,0.00013698,2]
[333844076,1722547842227,-500.0,0.00013698,2]
[333844077,1722547842238,-500.0,0.00013698,2]
[333844078,1722547842247,-491.20635534,0.00013698,2]
[333844079,1722547842257,-760.07,0.00013698,2]
[333844080,1722547842267,-508.06955036,0.00013698,2]
[333844081,1722547842276,-500.0,0.00013698,2]
[333844082,1722547842285,-555.94,0.00013698,2]
[333844083,1722547842294,-500.0,0.00013698,2]
[333844084,1722547842303,-500.0,0.00013698,2]
[333844085,1722547842313,-500.0,0.00013698,2]
[333844086,1722547842323,-500.0,0.00013698,2]
[333844087,1722547842332,-500.0,0.00013698,2]
[333844088,1722547842340,-500.0,0.00013698,2]
[333844089,1722547842350,-500.0,0.00013698,2]
[333844090,1722547842359,-2106.0,0.00013698,2]
[333844091,1722547842369,-500.0,0.00013698,2]
[333844092,1722547842378,-500.0,0.00013698,2]
[333844093,1722547842387,-327.12668707,0.00013698,2]
[333844094,1722547842400,-172.87331293,0.00013698,2]
[333844095,1722547842409,-691.54,0.00013698,2]
[333844096,1722547842419,-500.0,0.00013698,2]
[333844097,1722547842428,-500.0,0.00013698,2]
[333844098,1722547842438,-500.0,0.00013698,2]
[333844099,1722547842447,-500.0,0.00013698,2]
[333844100,1722547842457,-616.45,0.00013698,2]
[333844101,1722547842467,-500.0,0.00013698,2]
[333844102,1722547842478,-500.0,0.00013698,2]
[333844103,1722547842488,-500.0,0.00013698,2]
[333844105,1722547842497,-500.0,0.00013698,2]
[333844106,1722547842506,-290.13561987,0.00013698,2]
[333844107,1722547842520,-209.86438013,0.00013698,2]
[333844108,1722547842531,-500.0,0.00013698,2]
[333844109,1722547842541,-500.0,0.00013698,2]
[333844111,1722547842550,-500.0,0.00013698,2]
[333844112,1722547842560,-500.0,0.00013698,2]
[333844113,1722547842571,-500.0,0.00013698,2]
[333844114,1722547842581,-500.0,0.00013698,2]
[333844115,1722547842591,-204.06694146,0.00013698,2]
[333844122,1722547842951,-295.93305854,0.00013698,2]
[333844124,1722547842962,-500.0,0.00013698,2]
[333844125,1722547842971,-500.0,0.00013698,2]
[333844126,1722547842981,-500.0,0.00013698,2]
[333844127,1722547842991,-500.0,0.00013698,2]
[333844128,1722547843000,-500.0,0.00013698,2]
[333844129,1722547843010,-509.65691155,0.00013698,2]
[333844130,1722547843020,-500.0,0.00013698,2]
[333844131,1722547843029,-500.0,0.00013698,2]
[333844132,1722547843039,-500.0,0.00013698,2]
[333844133,1722547843048,-500.0,0.00013698,2]
[333844134,1722547843057,-500.0,0.00013698,2]
[333844135,1722547843067,-500.0,0.00013698,2]
[333844136,1722547843077,-500.0,0.00013698,2]
[333844137,1722547843087,-500.0,0.00013698,2]
[333844138,1722547843096,-572.39,0.00013698,2]
[333844139,1722547843107,-500.0,0.00013698,2]
[333844140,1722547843118,-500.0,0.00013698,2]
[333844141,1722547843128,-186.99875381,0.00013698,2]
[333844142,1722547843137,-544.85543826,0.00013698,2]
[333844143,1722547843147,-570.7,0.00013698,2]
[333844144,1722547843156,-608.26,0.00013698,2]
[333844145,1722547843166,-500.0,0.00013698,2]
[333844146,1722547843175,-500.0,0.00013698,2]
[333844147,1722547843184,-500.0,0.00013698,2]
[333844148,1722547843200,-500.0,0.00013698,2]
[333844149,1722547843210,-236.03918885,0.00013698,2]
[333844150,1722547843350,-263.96081115,0.00013698,2]
[333844151,1722547843360,-500.0,0.00013698,2]
[333844152,1722547843371,-500.0,0.00013698,2]
[333844153,1722547843383,-500.0,0.00013698,2]
[333844154,1722547843393,-240.016436,0.00013698,2]
[333844155,1722547843404,-259.983564,0.00013698,2]
[333844156,1722547843414,-1148.516406,0.00013698,2]
[333844157,1722547843425,-350.733594,0.00013698,2]
[333844158,1722547843435,-500.0,0.00013698,2]
[333844159,1722547843446,-522.2480063,0.00013698,2]
[333844160,1722547843455,-500.0,0.00013698,2]
[333844161,1722547843465,-500.0,0.00013698,2]
[333844162,1722547843475,-500.0,0.00013698,2]
[333844163,1722547843485,-1107.51,0.00013698,2]
[333844164,1722547843495,-500.0,0.00013698,2]
[333844165,1722547843506,-500.0,0.00013698,2]
[333844166,1722547843516,-500.0,0.00013698,2]
[333844167,1722547843526,-500.0,0.00013698,2]
[333844168,1722547843535,-500.0,0.00013698,2]
[333844169,1722547843545,-500.0,0.00013698,2]
[333844170,1722547843555,-500.0,0.00013698,2]
[333844171,1722547843564,-500.0,0.00013698,2]
[333844172,1722547843574,-501.5405468,0.00013698,2]
[333844173,1722547843584,-500.0,0.00013698,2]
[333844174,1722547843593,-500.0,0.00013698,2]
[333844175,1722547843602,-500.0,0.00013698,2]
[333844176,1722547843612,-500.0,0.00013698,2]
[333844177,1722547843622,-203.835903,0.00013698,2]
[333844178,1722547843634,-500.0,0.00013698,2]
[333844179,1722547843645,-500.0,0.00013698,2]
[333844180,1722547843655,-500.0,0.00013698,2]
[333844181,1722547843666,-805.68,0.00013698,2]
[333844182,1722547843677,-500.0,0.00013698,2]
[333844183,1722547843687,-500.0,0.00013698,2]
[333844184,1722547843697,-500.0,0.00013698,2]
[333844185,1722547843707,-500.0,0.00013698,2]
[333844186,1722547843717,-500.0,0.00013698,2]
[333844187,1722547843729,-500.0,0.00013698,2]
[333844188,1722547843738,-500.0,0.00013698,2]
[333844189,1722547843748,-500.0,0.00013698,2]
[333844190,1722547843758,-643.97,0.00013698,2]
[333844191,1722547843767,-500.0,0.00013698,2]
[333844192,1722547843776,-500.0,0.00013698,2]
[333844193,1722547843786,-500.0,0.00013698,2]
[333844194,1722547843795,-500.0,0.00013698,2]
[333844195,1722547843804,-500.0,0.00013698,2]
[333844196,1722547843813,-500.0,0.00013698,2]
[333844197,1722547843824,-500.0,0.00013698,2]
[333844198,1722547843833,-505.45,0.00013698,2]
[333844199,1722547843842,-500.0,0.00013698,2]
[333844200,1722547843851,-500.0,0.00013698,2]
[333844201,1722547843862,-500.0,0.00013698,2]
[333844202,1722547843872,-500.0,0.00013698,2]
[333844203,1722547843881,-643.69,0.00013698,2]
[333844204,1722547843891,-500.0,0.00013698,2]
[333844205,1722547843900,-500.0,0.00013698,2]
[333844206,1722547843910,-500.0,0.00013698,2]
[333844207,1722547843920,-604.08,0.00013698,2]
[333844208,1722547843932,-500.0,0.00013698,2]
[333844209,1722547843942,-500.0,0.00013698,2]
[333844210,1722547843953,-1698.64,0.00013698,2]
[333844211,1722547843964,-500.0,0.00013698,2]
[333844212,1722547843975,-3000.0,0.00013699,2]
[333844213,1722547843985,-260.740184,0.00013699,2]
[333844214,1722547843995,-500.0,0.00013699,2]
[333844215,1722547844007,-500.0,0.00013699,2]
[333844216,1722547844017,-500.0,0.00013699,2]
[333844217,1722547844026,-500.0,0.00013699,2]
[333844218,1722547844037,-500.0,0.00013699,2]
[333844219,1722547844048,-500.0,0.00013699,2]
[333844220,1722547844059,-500.0,0.00013699,2]
[333844221,1722547844069,-500.0,0.00013699,2]
[333844222,1722547844079,-500.0,0.00013699,2]
[333844223,1722547844090,-500.0,0.00013699,2]
[333844224,1722547844099,-500.0,0.00013699,2]
[333844225,1722547844205,-500.0,0.00013699,2]
[333844226,1722547844215,-500.0,0.00013699,2]
[333844227,1722547844226,-500.0,0.00013699,2]
[333844228,1722547844235,-500.0,0.00013699,2]
[333844229,1722547844246,-500.0,0.00013699,2]
[333844230,1722547844255,-500.0,0.00013699,2]
[333844231,1722547844267,-500.0,0.00013699,2]
[333844232,1722547844277,-500.0,0.00013699,2]
[333844233,1722547844287,-500.0,0.00013699,2]
[333844234,1722547844296,-240.6921238,0.00013699,2]
[333844235,1722547844306,-500.0,0.00013699,2]
[333844236,1722547844315,-500.0,0.00013699,2]
[333844237,1722547844325,-500.0,0.00013699,2]
[333844238,1722547844334,-500.0,0.00013699,2]
[333844239,1722547844344,-1555.76134705,0.0001379,4]
[333844240,1722547844354,-181.95700472,0.00013846,2]
[333844241,1722547844363,-413.7372329,0.00013878,2]
[333844242,1722547844373,-294.1746601,0.00013878,2]
[333844243,1722547844382,-294.0542309,0.00013878,2]
[333844244,1722547844392,-7415.43947594,0.000139,2]
[333844245,1722547844401,-153.0,0.00013933,2]
[333844246,1722547844411,-153.0,0.00013933,2]
[333844247,1722547844421,-153.0,0.00013933,2]
[333844248,1722547844430,-206.9081725,0.00013933,2]
[333844249,1722547844440,-153.0,0.00013933,2]
[333844250,1722547844449,-294.1746601,0.00013933,2]
[333844251,1722547844458,-153.0,0.00013933,2]
[333844252,1722547844468,-173.228744,0.00013933,2]
[333844253,1722547844478,-206.9081725,0.00013933,2]
[333844254,1722547844487,-1373.67,0.0001396,2]
[333844255,1722547844496,-32828.7956939,0.00013961,2]
[333844282,1722547853713,270.01125528,9.999e-05,2]
[333844285,1722547873483,412.86050164,0.0001,2]
[333844287,1722547888480,412.86050164,0.0001,2]
[333844288,1722547935389,1629.78009808,0.0001,2]
[333844290,1722547950542,1138.90791489,0.0001,2]
[333844291,1722547952939,1394.26025849,0.0001,2]
[333844293,1722547970415,174.37281606,0.0001,2]
[333844294,1722547992986,154.77557542,0.0001,2]
[333844306,1722548009481,412.86050164,0.0001,2]
[333844307,1722548024313,916.96629177,0.0001,2]
[333844310,1722548089990,155.97285366,0.0001,2]
[333844370,1722548211496,187.80794413,0.0001,2]
[333844451,1722549038524,-166.666666,0.00011406,2]
[333844452,1722549038536,-300.0,0.00011571,2]
[333844453,1722549038546,-300.0,0.00011571,2]
[333844454,1722549038555,-13012.23724464,0.00011572,2]
[333844455,1722549038566,-11887.76275536,0.00011572,2]
[333844456,1722549038577,-250.0,0.00011579,2]
[333844457,1722549038586,-250.0,0.0001161,2]
[333844458,1722549038595,-250.0,0.00011642,2]
[333844459,1722549038607,-250.0,0.00011674,2]
[333844460,1722549038617,-250.0,0.00011706,2]
[333844461,1722549038629,-250.0,0.00011737,2]
[333844463,1722549038639,-250.0,0.00011769,2]
[333844464,1722549038651,-166.666666,0.00011795,2]
[333844465,1722549038664,-250.0,0.00011801,2]
[333844466,1722549038674,-250.0,0.00011833,2]
[333844467,1722549038686,-250.0,0.00011864,2]
[333844468,1722549038697,-250.0,0.00011896,2]
[333844469,1722549038709,-250.0,0.00011928,2]
[333844470,1722549038718,-250.0,0.0001196,2]
[333844471,1722549038728,-250.0,0.00011992,2]
[333844472,1722549038738,-250.0,0.00012023,2]
[333844473,1722549038749,-90.25573523,0.00012055,2]
[333844474,1722549038766,-159.74426477,0.00012055,2]
[333844475,1722549038777,-250.0,0.00012087,2]
[333844476,1722549038786,-250.0,0.00012119,2]
[333844477,1722549038796,-250.0,0.0001215,2]
[333844478,1722549038806,-250.0,0.00012182,2]
[333844479,1722549038816,-166.666666,0.00012183,2]
[333844480,1722549038826,-166.666666,0.00012572,2]
[333844481,1722549038836,-420.0,0.00012728,2]
[333844482,1722549038845,-153.0,0.00012878,2]
[333844483,1722549038855,-4177.87715639,0.000129,2]
[333844484,1722549038866,-166.666666,0.00012961,2]
[333844485,1722549038878,-167.602961,0.00012986,2]
[333844486,1722549038888,-309.52564132,0.00013,2]
[333844487,1722549038899,-220.4228901,0.00013178,2]
[333844488,1722549038910,-294.1746601,0.00013178,2]
[333844489,1722549038920,-153.0,0.00013278,2]
[333844490,1722549038930,-4880.96828261,0.00013431,2]
[333844491,1722549038941,-153.0,0.00013478,2]
[333844492,1722549038951,-1794.4280454,0.00013597,2]
[333844493,1722549038961,-153.0,0.00013636,2]
[333844494,1722549038972,-18906.78235231,0.00013688,2]
[333844495,1722549038986,-125089.97050669,0.00013688,2]
[333844496,1722549038997,-367.7699373,0.00013695,2]
[333844497,1722549039009,-1492.36,0.00013697,2]
[333844498,1722549039019,-1492.36,0.00013697,2]
[333844499,1722549039029,-3554.80724592,0.00013698,5]
[333844500,1722549039039,-500.0,0.00013698,2]
[333844501,1722549039049,-500.0,0.00013698,2]
[333844502,1722549039059,-549.01148261,0.00013698,2]
[333844503,1722549039069,-506.24815418,0.00013698,2]
[333844504,1722549039079,-500.0,0.00013698,2]
[333844505,1722549039090,-500.0,0.00013698,2]
[333844506,1722549039099,-500.0,0.00013698,2]
[333844507,1722549039108,-500.0,0.00013698,2]
[333844508,1722549039118,-500.0,0.00013698,2]
[333844509,1722549039128,-500.0,0.00013698,2]
[333844510,1722549039137,-500.0,0.00013698,2]
[333844511,1722549039147,-500.63230799,0.00013698,2]
[333844512,1722549039254,-500.35601503,0.00013698,2]
[333844513,1722549039264,-500.0,0.00013698,2]
[333844514,1722549039275,-500.0,0.00013698,2]
[333844515,1722549039286,-500.0,0.00013698,2]
[333844516,1722549039297,-500.0,0.00013698,2]
[333844517,1722549039306,-500.0,0.00013698,2]
[333844518,1722549039316,-500.0,0.00013698,2]
[333844519,1722549039326,-500.0,0.00013698,2]
[333844520,1722549039337,-500.0,0.00013698,2]
[333844521,1722549039350,-500.0,0.00013698,2]
[333844522,1722549039360,-500.0,0.00013698,2]
[333844523,1722549039372,-500.0,0.00013698,2]
[333844524,1722549039382,-500.0,0.00013698,2]
[333844525,1722549039392,-500.0,0.00013698,2]
[333844526,1722549039401,-500.0,0.00013698,2]
[333844527,1722549039411,-500.0,0.00013698,2]
[333844528,1722549039422,-500.0,0.00013698,2]
[333844529,1722549039431,-500.0,0.00013698,2]
[333844530,1722549039441,-500.0,0.00013698,2]
[333844531,1722549039450,-156.40591591,0.00013698,2]
[333844532,1722549039459,-500.0,0.00013698,2]
[333844533,1722549039468,-500.0,0.00013698,2]
[333844534,1722549039478,-500.0,0.00013698,2]
[333844535,1722549039487,-500.0,0.00013698,2]
[333844536,1722549039498,-500.0,0.00013698,2]
[333844537,1722549039508,-500.0,0.00013698,2]